bitfinex-derivatives/quotes_ETHF0:USTF0_20251006
["timestamp","ask_amount","ask_price","bid_price","bid_amount"]
[1759759295635,0.22,4642.2,4641.5,0.3676]
[1759759295843,3.2078,4642.9,4641.9,0.9087]
[1759759296047,0.22,4642.8,4641.9,0.9087]
[1759759296347,2.34853908,4642.9,4642.3,0.9087]
[1759759296545,0.22,4642.8,4642.3,0.9087]
[1759759296741,3.2078,4643.4,4642.2,0.3913]
[1759759296944,3.2078,4643.4,4642.8,0.3913]
[1759759297136,12.82812107,4644.0,4643.0,4.55985662]
[1759759297342,13.21556107,4644.0,4643.4,4.95115662]
[1759759297537,0.38745,4643.9,4643.4,0.3913]
[1759759297747,9.62032107,4644.0,4643.4,0.3913]
[1759759298043,0.38746,4643.7,4643.5,0.9087]
[1759759298243,0.22,4643.9,4643.5,0.9087]
[1759759298451,0.38747,4643.7,4642.9,0.9087]
[1759759298648,0.5109,4643.8,4642.8,0.3913]
[1759759298945,0.38752,4643.1,4642.9,0.29186435]
[1759759299147,0.89842,4643.1,4643.0,0.29186435]
[1759759299340,0.03915908,4643.1,4643.0,0.29186435]
[1759759299545,3.22627327,4643.1,4643.0,0.29186435]
[1759759299946,6.43407327,4643.1,4643.0,0.29186435]
[1759759300148,0.3876,4642.0,4641.6,0.3913]
[1759759300339,6.00739419,4643.1,4641.8,0.9087]
[1759759300540,6.00739419,4643.1,4641.6,0.3913]
[1759759300541,3.2078,4643.1,4642.2,1.3]
[1759759300753,2.82944799,4642.9,4642.8,1.3]
[1759759301037,3.2078,4643.8,4642.9,0.9087]
[1759759301243,33.834,4643.7,4642.9,0.9087]
[1759759301549,0.38751,4643.2,4642.9,0.9087]
[1759759301744,0.22,4643.1,4642.8,0.3913]
[1759759301937,3.2078,4643.8,4642.9,0.9087]
[1759759302142,33.834,4643.7,4642.9,0.9087]
[1759759302342,1.77900411,4643.5,4642.9,0.9087]
[1759759302547,36.69226503,4643.7,4642.9,0.9087]
[1759759302740,0.3875,4643.3,4642.9,0.9087]
[1759759302947,3.76172233,4643.6,4642.8,3.2078]
[1759759303143,2.79304233,4643.2,4642.3,3.2078]
[1759759303342,3.2078,4643.3,4642.4,0.9087]
[1759759303542,36.62105698,4643.2,4642.3,3.2078]
[1759759303742,36.62105698,4643.2,4642.4,0.9087]
[1759759303939,0.38753,4642.9,4642.4,4.55985662]
[1759759304144,0.60754,4642.8,4642.4,4.55985662]
[1759759304347,0.38753,4643.0,4642.5,0.9087]
[1759759304546,33.834,4642.9,4642.5,0.9087]
[1759759304848,0.22,4642.8,4642.4,4.55985662]
[1759759305050,0.22,4642.7,4642.5,0.9087]
[1759759305240,0.38752,4643.0,4642.5,0.9087]
[1759759305445,1.73745525,4643.8,4642.4,0.9087]
[1759759305645,0.38752,4643.1,4642.5,0.9087]
[1759759305845,0.22,4643.0,4642.9,4.1165]
[1759759306043,0.22,4643.0,4642.9,3.2078]
[1759759306339,0.38753,4642.9,4642.8,0.3913]
[1759759306547,0.38753,4642.9,4642.8,1.3]
[1759759306746,2.83223984,4642.9,4642.2,1.3]
[1759759307050,0.3876,4642.1,4641.9,0.9087]
[1759759307355,0.38761,4641.9,4641.8,3.2078]
[1759759307646,2.16,4641.7,4639.9,0.74904685]
[1759759307847,0.38779,4639.9,4639.7,0.9349]
[1759759308045,3.2078,4640.0,4639.3,0.9349]
[1759759308046,33.835,4639.8,4639.3,0.9349]
[1759759308240,3.2078,4639.4,4639.3,0.9349]
[1759759308441,2.34853908,4639.4,4639.3,0.9349]
[1759759308647,5.20251604,4639.4,4639.3,0.93721435]
[1759759308843,5.20251604,4639.4,4639.3,0.00231435]
[1759759309245,11.28177696,4639.4,4639.3,0.00231435]
[1759759309753,0.38787,4638.8,4638.7,0.9349]
[1759759309946,3.4278,4638.8,4638.1,0.9349]
[1759759310252,3.2078,4638.2,4638.1,5.49475662]
[1759759310446,3.2078,4638.2,4638.1,0.9349]
[1759759310643,1.85753907,4639.0,4638.7,0.9349]
[1759759310845,0.22,4638.9,4638.7,0.9349]
[1759759311048,2.84006829,4639.3,4639.2,0.3881]
[1759759311249,0.22,4639.3,4639.2,1.323]
[1759759311642,0.22233927,4639.3,4639.2,1.323]
[1759759312646,0.00233927,4639.3,4639.2,1.323]
[1759759312848,0.22233927,4639.3,4639.2,1.323]
[1759759313052,0.00233927,4639.3,4639.2,6.71084]
[1759759313253,0.22233927,4639.3,4639.2,1.323]
[1759759313754,0.22233927,4639.3,4638.6,0.3881]
[1759759313755,0.38788,4638.8,4638.6,0.3881]
[1759759313957,0.22,4638.7,4638.6,1.323]
[1759759314257,3.04383054,4638.7,4638.6,1.323]
[1759759314650,7.18456962,4638.7,4638.1,0.00230833]
[1759759314851,3.2078,4638.4,4638.1,0.00230833]
[1759759315151,3.35833802,4638.3,4638.1,0.00230833]
[1759759315356,2.75041802,4638.3,4638.2,0.9349]
[1759759315558,0.22,4638.3,4638.2,0.9349]
[1759759315850,3.59565,4639.0,4638.9,1.323]
[1759759316051,3.25168635,4638.3,4638.2,0.9349]
[1759759316255,0.60791,4638.3,4638.2,0.9349]
[1759759316449,3.43182751,4638.3,4638.1,0.00230833]
[1759759316650,3.04391751,4638.3,4638.2,0.9349]
[1759759317359,0.22,4638.3,4638.2,0.9349]
[1759759317560,7.84768689,4638.3,4637.9,0.02156172]
[1759759317755,0.38798,4637.5,4637.4,0.3881]
[1759759317958,0.60798,4637.5,4637.4,0.3881]
[1759759318158,0.38801,4637.1,4637.0,0.9349]
[1759759318454,0.38803,4636.9,4636.4,0.9349]
[1759759318655,3.04305771,4637.1,4636.9,0.9349]
[1759759318862,33.855,4637.0,4636.9,0.9349]
[1759759319053,37.06607771,4637.0,4636.9,0.9349]
[1759759319249,33.855,4637.0,4636.9,0.9349]
[1759759319561,0.38803,4636.9,4636.8,0.38998607]
[1759759319755,0.38803,4636.9,4636.8,0.00188607]
[1759759319949,0.38809,4636.2,4635.7,0.9349]
[1759759320154,34.24609,4636.2,4636.1,1.323]
[1759759320355,3.03773328,4636.2,4636.1,4.5308]
[1759759320652,0.96967,4638.9,4636.1,4.5308]
[1759759320653,3.2078,4638.8,4637.5,0.9349]
[1759759320857,0.38798,4637.5,4637.3,3.2078]
[1759759321051,0.22,4637.4,4636.7,2.1915]
[1759759321258,0.22,4637.4,4633.2,0.3881]
[1759759321259,9.70132,4636.7,4634.8,0.9349]
[1759759321563,3.2078,4635.8,4635.6,0.3881]
[1759759321858,0.22,4635.7,4635.6,0.3881]
[1759759322052,2.82839198,4635.7,4635.6,0.38985174]
[1759759322359,0.00217776,4635.7,4635.6,1.32475174]
[1759759322557,0.22,4636.1,4635.7,0.9349]
[1759759322752,3.2078,4637.6,4637.4,0.3881]
[1759759322952,0.22,4637.5,4637.4,1.323]
[1759759323264,5.22,4637.5,4636.2,0.3881]
[1759759323458,3.2078,4636.8,4636.2,0.3881]
[1759759323654,0.22,4636.7,4636.2,0.3881]
[1759759323957,2.76100958,4636.7,4636.3,3.2078]
[1759759324164,0.0027894,4637.5,4637.4,0.3881]
[1759759324368,0.2227894,4637.5,4637.4,0.3881]
[1759759324557,3.02039586,4637.5,4637.4,0.3881]
[1759759325056,0.38803,4637.0,4636.8,0.3881]
[1759759325255,3.4278,4636.9,4636.8,0.3881]
[1759759325557,0.0027894,4637.5,4636.8,1.323]
[1759759325753,0.0027894,4637.5,4637.4,1.323]
[1759759325754,33.6517894,4637.5,4637.4,1.323]
[1759759325951,0.0027894,4637.5,4637.4,1.323]
[1759759326463,3.2078,4638.3,4638.1,0.9349]
[1759759326662,2.12853908,4639.0,4638.6,0.3881]
[1759759326963,36.65682777,4638.9,4638.6,0.3881]
[1759759327155,36.65682777,4638.9,4638.7,0.9349]
[1759759327156,33.87,4638.8,4638.7,0.9349]
[1759759327351,33.87250043,4638.8,4638.7,0.9349]
[1759759327560,2.74432597,4638.8,4638.7,0.9349]
[1759759327863,0.00250043,4638.8,4638.7,0.9349]
[1759759328162,0.22250043,4638.8,4638.7,0.9349]
[1759759328359,0.22350043,4638.8,4638.7,0.9349]
[1759759329165,3.07803337,4638.8,4638.7,0.9349]
[1759759329962,2.21977245,4638.8,4638.7,0.9349]
[1759759330155,1.99877245,4638.8,4638.7,0.9349]
[1759759330355,35.86877245,4638.8,4638.7,0.9349]
[1759759330855,35.87113584,4638.8,4638.7,0.9349]
[1759759331759,41.25900584,4638.8,4638.6,0.3881]
[1759759332065,0.38793,4638.2,4638.0,0.3881]
[1759759332263,0.38795,4637.8,4637.7,0.9349]
[1759759332562,2.97117526,4637.8,4637.7,0.9349]
[1759759332762,1.67191434,4637.8,4637.7,0.9349]
[1759759333163,3.21016339,4638.8,4638.7,0.9349]
[1759759333365,33.87236339,4638.8,4638.7,0.9349]
[1759759333566,0.00236339,4638.8,4638.7,0.9349]
[1759759333763,0.00236339,4638.8,4638.7,5.9349]
[1759759334262,3.2078,4639.9,4639.8,1.323]
[1759759334859,3.4288,4639.9,4639.8,1.323]
[1759759335059,6.2070592,4639.9,4639.8,1.323]
[1759759335360,6.20970571,4639.9,4639.8,1.32489999]
[1759759335560,6.59748571,4639.9,4639.8,0.38999999]
[1759759335863,5.51822479,4639.9,4639.8,1.32489999]
[1759759336055,6.20970571,4639.9,4639.8,1.32489999]
[1759759336360,40.24548571,4639.9,4639.8,1.32489999]
[1759759336564,45.24548571,4639.9,4639.8,0.38999999]
[1759759336761,0.38783,4639.3,4639.2,0.3881]
[1759759337066,6.65637017,4639.3,4639.2,1.323]
[1759759337254,2.83974017,4639.3,4639.2,1.323]
[1759759337460,36.70774017,4639.3,4639.2,1.323]
[1759759337761,33.64964651,4639.9,4639.4,0.38781]
[1759759337963,33.64964651,4639.9,4639.8,1.0205]
[1759759337964,0.00264651,4639.9,4639.8,1.0205]
[1759759338266,0.12064651,4639.9,4639.8,1.0205]
[1759759338865,0.221,4639.9,4639.8,1.0205]
[1759759339064,3.0368805,4639.9,4639.8,1.0205]
[1759759339960,3.03937951,4639.9,4639.8,1.0205]
[1759759340867,3.42715951,4639.9,4639.2,1.41012933]
[1759759341766,3.03937951,4639.9,4639.2,1.41012933]
[1759759341969,1.96011859,4639.9,4639.8,1.4654]
[1759759342462,1.96011859,4639.9,4639.2,1.41012933]
[1759759342463,44.03291859,4639.9,4639.2,1.41012933]
[1759759342669,44.03291859,4639.9,4639.8,1.4654]
[1759759342670,1.96011859,4639.9,4639.8,1.4654]
[1759759342865,0.22249901,4639.9,4639.8,1.4654]
[1759759343064,0.22249901,4639.9,4639.8,6.4654]
[1759759344463,0.22249901,4639.9,4639.8,1.4654]
[1759759344863,3.03891784,4639.9,4639.8,1.4654]
[1759759345060,2.18065692,4639.9,4639.8,1.4654]
[1759759345271,3.2078,4640.3,4639.9,1.0205]
[1759759345471,0.38771,4640.8,4639.9,1.0205]
[1759759345472,33.863,4640.2,4639.9,1.0205]
[1759759345777,3.2078,4640.9,4640.5,1.0205]
[1759759345961,3.20948376,4640.9,4640.5,1.0205]
[1759759346162,2.75548005,4640.7,4640.5,1.0205]
[1759759346369,0.22,4640.6,4640.5,1.0205]
[1759759346764,3.05621109,4640.6,4640.5,1.0205]
[1759759347274,2.83621109,4640.6,4640.5,1.0205]
[1759759347463,3.05621109,4640.6,4640.5,1.0205]
[1759759347663,0.00168376,4640.9,4640.8,0.3877]
[1759759347859,0.22168376,4640.9,4640.8,4.2283]
[1759759348061,3.2078,4642.1,4640.8,4.2283]
[1759759348062,3.2078,4642.1,4641.2,0.38767]
[1759759348266,33.861,4642.0,4641.7,1.0205]
[1759759348571,0.38757,4642.4,4642.3,1.0205]
[1759759348767,0.3876,4642.1,4641.6,0.4449]
[1759759349063,3.2078,4641.8,4641.6,0.4449]
[1759759349263,0.22,4641.7,4641.0,0.4449]
[1759759349471,2.98262038,4641.7,4641.6,0.4449]
[1759759350367,0.38766,4641.4,4641.0,0.4449]
[1759759350568,0.22,4641.3,4641.0,0.4449]
[1759759350772,2.83819031,4641.3,4641.1,1.0205]
[1759759351067,2.83819031,4641.6,4641.5,0.4449]
[1759759351271,36.69519031,4641.6,4641.5,1.4654]
[1759759351575,0.0022927,4642.1,4642.0,1.853]
[1759759351766,0.0022927,4642.1,4642.0,5.0608]
[1759759351969,0.102,4642.1,4642.0,4.6732]
[1759759352167,0.022,4642.9,4642.6,1.0205]
[1759759352366,0.22,4642.8,4642.6,1.40805]
[1759759352673,0.22,4642.8,4642.7,1.0205]
[1759759352972,0.022,4642.9,4642.8,1.0205]
[1759759353161,0.24412322,4642.9,4642.8,1.0205]
[1759759353874,3.01613146,4642.9,4641.4,3.2078]
[1759759354072,0.22,4642.8,4642.2,0.38758]
[1759759354264,3.2078,4642.6,4642.2,0.38758]
[1759759354465,3.2078,4642.6,4641.5,0.4449]
[1759759354665,38.0784221,4642.5,4641.4,3.2078]
[1759759354971,3.8388521,4642.5,4641.6,0.38763]
[1759759355175,3.8388521,4642.5,4641.6,0.38918491]
[1759759355176,33.851,4642.4,4641.6,0.38918491]
[1759759355470,2.8030521,4642.3,4641.8,0.38761]
[1759759355667,2.8030521,4642.3,4641.9,0.38761]
[1759759355863,0.22,4642.2,4642.0,1.1075]
[1759759356068,0.22,4642.1,4641.9,0.38761]
[1759759356365,0.00277837,4642.5,4642.0,1.1075]
[1759759356563,0.22,4642.4,4642.0,0.4748]
[1759759356875,0.00277837,4642.5,4642.4,1.49507]
[1759759357068,33.629,4642.8,4642.4,1.49507]
[1759759357372,0.22,4642.5,4642.4,1.49507]
[1759759357571,0.22,4642.5,4641.9,3.2078]
[1759759357868,3.2078,4643.2,4641.9,3.2078]
[1759759357869,3.2078,4643.2,4643.1,1.49501]
[1759759358076,3.2078,4643.7,4643.5,0.38748]
[1759759358380,5.99589545,4643.7,4643.6,1.1075]
[1759759358567,6.21589545,4643.7,4643.6,1.1075]
[1759759358872,6.21589545,4643.7,4643.3,1.49499]
[1759759359277,6.21589545,4643.7,4643.4,1.49498]
[1759759359575,0.00162715,4643.7,4643.6,1.1075]
[1759759359969,0.22162715,4643.7,4643.6,1.1075]
[1759759360172,0.22,4643.7,4643.6,1.1075]
[1759759360375,3.02711501,4643.7,4643.5,0.38748]
[1759759360673,3.02711501,4643.7,4643.5,1.49498]
[1759759360869,3.02711501,4643.7,4643.4,1.1075]
[1759759361175,6.23717292,4643.7,4642.8,1.1075]
[1759759361375,6.23717292,4643.7,4642.7,3.2078]
[1759759361376,0.38751,4643.2,4642.7,3.2078]
[1759759361669,1.2165,4643.0,4642.7,3.2078]
[1759759361864,1.4365,4642.9,4642.7,3.2078]
[1759759362177,33.841,4642.8,4642.4,1.1075]
[1759759362377,1.2165,4642.9,4642.5,1.1075]
[1759759362673,33.841,4642.8,4642.6,0.38755]
[1759759362871,0.38752,4643.1,4642.3,1.49508]
[1759759363175,35.96611169,4643.0,4642.3,1.49507]
[1759759363374,0.38753,4642.9,4642.5,0.38756]
[1759759363572,1.2165,4642.7,4642.5,0.38756]
[1759759363770,0.22,4642.6,4642.5,0.38756]
[1759759363970,0.22,4642.6,4642.3,1.1075]
[1759759363971,0.60756,4642.6,4642.3,1.1075]
[1759759364171,1.4365,4642.6,4642.3,1.49508]
[1759759364571,0.22,4642.6,4642.5,1.1075]
[1759759366076,3.2078,4643.2,4642.8,0.38753]
[1759759366276,33.839,4643.1,4642.9,1.1075]
[1759759366575,36.61961429,4643.1,4642.3,3.2078]
[1759759366878,37.00713429,4643.1,4642.4,0.38757]
[1759759367074,37.00713429,4643.1,4642.5,0.38756]
[1759759367271,1.2165,4643.0,4642.7,1.1075]
[1759759367477,0.22,4642.9,4642.1,1.1075]
[1759759367777,2.98407034,4642.9,4642.6,0.38755]
[1759759367968,2.98407034,4642.9,4642.7,1.153]
[1759759368375,2.98407034,4642.9,4642.7,1.54054]
[1759759369071,4.12627034,4642.9,4642.3,3.2078]
[1759759369271,0.22,4642.8,4642.7,0.38754]
[1759759369574,1.90480942,4642.9,4642.8,1.153]
[1759759369780,2.12480942,4642.9,4642.5,0.38756]
[1759759370074,1.1422,4642.8,4642.6,0.38755]
[1759759370282,2.12480942,4642.9,4642.5,1.153]
[1759759370283,1.3622,4642.7,4642.5,1.153]
[1759759370787,1.3622,4642.7,4642.5,1.54056]
[1759759371077,0.22,4642.7,4641.8,3.2078]
[1759759371283,3.2078,4642.2,4641.4,0.38765]
[1759759371484,1.1422,4642.0,4641.6,0.38918491]
[1759759371677,33.837,4641.9,4641.8,1.153]
[1759759371872,3.2078,4642.2,4641.8,1.153]
[1759759372176,1.1422,4641.7,4641.6,0.00155491]
[1759759372378,3.4278,4641.7,4641.6,0.00155491]
[1759759372578,6.01096289,4641.7,4641.6,0.00155491]
[1759759372774,39.84796289,4641.7,4641.6,0.00155491]
[1759759374381,7.15316289,4641.7,4641.6,0.00155491]
[1759759374577,6.01096289,4641.7,4641.6,1.15455491]
[1759759374778,7.37216289,4641.7,4641.6,0.00155491]
[1759759374977,12.37216289,4641.7,4640.5,4.07243]
[1759759375282,12.37216289,4641.7,4640.5,0.4769]
[1759759375283,3.2078,4641.1,4640.5,0.4769]
[1759759375474,0.219,4641.0,4640.9,1.153]
[1759759375777,3.2078,4641.7,4641.0,0.4769]
[1759759375969,0.219,4641.6,4641.4,0.38765]
[1759759376174,2.11118,4642.2,4641.0,0.47912063]
[1759759376375,1.1422,4642.2,4641.3,1.153]
[1759759376575,2.8049115,4642.0,4641.5,0.4769]
[1759759376782,1.1422,4641.6,4641.0,0.00222063]
[1759759376981,0.38766,4641.4,4641.0,0.00222063]
[1759759377177,0.219,4641.3,4641.0,0.00222063]
[1759759377377,0.219,4641.3,4641.1,0.38768]
[1759759377577,0.219,4641.3,4641.2,1.153]
[1759759377777,0.60666,4641.3,4641.0,1.15522063]
[1759759377977,1.74886,4641.3,4641.0,1.15522063]
[1759759378183,1.1422,4641.1,4641.0,0.00222063]
[1759759378384,0.28293908,4641.1,4641.0,0.00222063]
[1759759378576,0.22,4641.1,4641.0,1.15522063]
[1759759378882,0.22,4641.1,4641.0,1.63212063]
[1759759379080,33.621,4641.4,4641.1,1.153]
[1759759379277,0.22,4641.3,4641.0,0.47912063]
[1759759379477,2.86312372,4641.3,4641.1,1.54067]
[1759759379682,0.38762,4641.8,4641.5,0.4769]
[1759759379976,3.2078,4642.4,4641.6,1.153]
[1759759380183,0.22,4642.3,4642.0,0.4769]
[1759759380385,33.621,4642.5,4642.2,1.153]
[1759759380572,3.2078,4642.9,4642.6,1.153]
[1759759381077,3.2078,4643.5,4642.6,1.153]
[1759759381277,0.00225791,4643.7,4643.6,1.153]
[1759759381583,7.46371928,4644.0,4643.7,1.153]
[1759759381781,0.22,4643.9,4643.7,1.153]
[1759759381980,7.46371928,4644.0,4643.9,1.153]
[1759759382386,3.59019193,4644.0,4643.9,6.153]
[1759759382586,3.59256969,4644.0,4643.9,6.153]
[1759759382777,0.3485,4645.9,4643.9,5.0]
[1759759382980,3.59507,4646.0,4645.2,1.54033]
[1759759383292,1.2282,4645.9,4645.3,0.38733]
[1759759383586,0.22,4645.8,4645.3,0.38733]
[1759759383782,0.22259962,4645.8,4645.3,0.39009714]
[1759759383981,0.22259962,4645.8,4645.5,0.38731]
[1759759384183,0.00259962,4645.8,4645.6,1.5403]
[1759759384384,0.00259962,4645.8,4645.6,1.153]
[1759759384581,0.0655387,4646.3,4645.6,1.153]
[1759759384782,0.22,4646.2,4645.6,1.153]
[1759759385084,3.59508,4646.0,4645.3,0.00276714]
[1759759385284,0.60728,4645.9,4645.3,0.00276714]
[1759759385489,0.60958548,4645.9,4645.3,0.00276714]
[1759759385985,0.38731,4645.6,4645.3,0.00276714]
[1759759386184,0.22230548,4645.9,4643.9,3.2078]
[1759759386185,3.2078,4645.4,4643.9,3.2078]
[1759759386391,0.38742,4644.3,4643.2,4.3608]
[1759759386690,0.38744,4644.0,4643.2,4.3608]
[1759759386879,3.2078,4644.3,4643.3,1.54049]
[1759759387080,3.2078,4644.8,4643.9,0.38745]
[1759759387282,0.97051548,4645.9,4644.3,1.153]
[1759759387283,0.22,4644.7,4644.3,1.153]
[1759759387484,39.5144103,4645.4,4644.4,1.153]
[1759759387778,0.3874,4644.6,4644.0,0.4769]
[1759759387984,0.219,4644.5,4643.8,1.153]
[1759759388179,3.2078,4645.4,4644.4,1.153]
[1759759388387,3.2078,4645.4,4644.6,1.54038]
[1759759388589,0.219,4645.3,4644.9,3.2078]
[1759759388887,0.219,4645.2,4645.0,1.153]
[1759759389082,0.219,4645.2,4644.9,3.59516]
[1759759389282,1.1422,4645.1,4644.9,3.2078]
[1759759389482,1.1422,4645.1,4643.3,0.56405929]
[1759759389483,0.38736,4645.0,4644.1,1.153]
[1759759389678,0.38736,4645.0,4644.1,1.54042]
[1759759389878,0.219,4645.2,4644.6,1.153]
[1759759390288,0.38741,4644.4,4644.0,0.4769]
[1759759390489,0.219,4644.3,4643.9,3.2078]
[1759759390793,1.3612,4644.3,4643.9,1.153]
[1759759390985,0.38748,4643.5,4643.3,0.00200049]
[1759759391193,1.3612,4643.4,4643.3,0.00200049]
[1759759391588,0.219,4643.4,4643.3,1.15500049]
[1759759391787,0.219,4643.4,4643.3,6.15500049]
[1759759392592,0.219,4643.4,4643.3,9.36280049]
[1759759393483,0.38742,4644.3,4643.5,0.38747]
[1759759393684,0.219,4644.2,4643.9,1.153]
[1759759393887,0.38743,4644.1,4643.9,1.153]
[1759759394083,1.52963,4644.1,4643.8,3.2078]
[1759759394386,0.219,4644.2,4643.8,3.2078]
[1759759394583,0.38744,4644.0,4643.8,3.2078]
[1759759394788,0.60645,4643.9,4643.6,1.153]
[1759759394980,0.60646,4643.8,4643.6,3.2078]
[1759759395187,0.38746,4643.8,4643.7,1.153]
[1759759395389,0.219,4643.8,4643.7,1.153]
[1759759396091,1.1422,4645.4,4644.0,0.4769]
[1759759396288,0.219,4645.3,4644.7,3.2078]
[1759759396489,0.38737,4644.9,4644.7,4.3608]
[1759759396687,0.219,4644.8,4644.7,4.3608]
[1759759396892,0.219,4644.8,4644.7,3.2078]
[1759759397395,1.3612,4644.8,4644.7,3.2078]
[1759759397691,1.3612,4644.8,4643.3,0.00200049]
[1759759397692,0.219,4644.8,4643.6,3.2078]
[1759759397890,0.38742,4644.2,4643.9,1.184]
[1759759398193,0.219,4644.1,4644.0,1.6612]
[1759759398982,0.219,4644.1,4644.0,1.184]
[1759759399583,2.11354,4645.3,4644.0,6.6612]
[1759759399784,0.38735,4645.1,4644.6,1.184]
[1759759399996,0.219,4645.2,4644.6,1.184]
[1759759400290,0.219,4645.2,4644.5,0.4772]
[1759759400497,0.38737,4644.8,4644.6,1.184]
[1759759400790,3.2078,4648.2,4645.5,0.4772]
[1759759400998,3.2078,4648.2,4647.0,0.4772]
[1759759401294,3.2078,4648.2,4647.6,1.184]
[1759759401486,3.2078,4649.3,4647.8,3.2078]
[1759759401686,0.606,4649.2,4648.6,1.184]
[1759759401891,0.38702,4649.1,4648.6,1.18646301]
[1759759402090,0.00171243,4649.2,4649.0,1.6612]
[1759759402292,0.00171243,4649.2,4649.1,1.184]
[1759759403091,0.38703,4649.0,4648.6,0.00246301]
[1759759403296,0.38703,4649.0,4648.7,1.184]
[1759759403600,0.38704,4648.8,4648.7,1.184]
[1759759403792,0.60604,4648.8,4648.6,0.00246301]
[1759759404204,1.1452,4648.7,4648.6,0.00246301]
[1759759404397,7.16399708,4648.7,4647.6,1.184]
[1759759404594,7.16399708,4648.7,4647.1,1.184]
[1759759404988,0.3871,4648.1,4647.9,1.184]
[1759759405194,0.219,4648.0,4647.8,3.2078]
[1759759405394,0.219,4647.9,4647.8,4.39385377]
[1759759405597,0.60611,4647.9,4647.8,4.39385377]
[1759759405902,4.353,4648.7,4647.8,4.39385377]
[1759759406102,0.38706,4648.5,4647.9,1.184]
[1759759406294,0.219,4648.6,4648.3,4.3918]
[1759759406492,0.219,4648.6,4648.5,1.184]
[1759759408395,0.38711,4648.0,4647.9,1.184]
[1759759408594,4.353,4648.8,4647.8,4.39385377]
[1759759408800,0.38706,4648.6,4648.4,1.184]
[1759759408995,0.38707,4648.5,4648.4,1.184]
[1759759409200,0.219,4648.8,4648.3,3.2078]
[1759759409402,0.38705,4648.7,4648.6,1.184]
[1759759409999,0.3871,4648.0,4647.9,1.184]
[1759759410499,0.219,4648.3,4647.8,3.20985377]
[1759759410704,0.219,4648.3,4647.9,1.184]
[1759759410907,0.38709,4648.2,4648.1,1.184]
[1759759411303,0.3871,4648.1,4647.9,1.184]
[1759759411505,0.3871,4648.1,4647.8,3.20985377]
[1759759411707,0.38711,4648.0,4647.9,1.184]
[1759759412301,0.38709,4648.2,4647.8,3.59697377]
[1759759412502,0.38709,4648.2,4648.1,1.184]
[1759759412800,0.219,4649.0,4648.3,1.184]
[1759759412996,0.60602,4649.0,4648.9,1.184]
[1759759413406,0.219,4649.0,4648.9,1.184]
[1759759414700,0.00171243,4649.2,4649.0,0.86421]
[1759759414898,0.38698,4649.5,4649.1,5.0]
[1759759415099,0.15,4650.0,4649.4,3.2078]
[1759759415302,0.38702,4649.0,4648.9,4.347]
[1759759415797,0.38707,4648.4,4648.3,4.347]
[1759759416008,0.38706,4648.5,4648.4,1.1392]
[1759759416705,0.00251197,4649.0,4648.6,0.38705]
[1759759417011,0.00251197,4649.0,4648.9,1.1392]
[1759759417303,0.38703,4648.9,4648.8,4.347]
[1759759417503,0.38703,4648.9,4648.8,3.2078]
[1759759417703,0.38707,4648.4,4648.3,1.1392]
[1759759418007,1.56611,4647.9,4646.1,1.7012588]
[1759759418205,0.38726,4646.2,4646.0,4.347]
[1759759418404,1.179,4646.9,4645.5,4.8362]
[1759759418405,0.3873,4645.6,4645.5,4.8362]
[1759759418605,0.22,4646.3,4645.5,4.347]
[1759759418903,3.2078,4647.2,4646.1,1.1392]
[1759759419111,0.22271254,4647.2,4646.9,1.1392]
[1759759419302,0.22271254,4647.2,4646.8,3.2078]
[1759759419504,0.22271254,4647.2,4646.9,1.1392]
[1759759419701,0.22271254,4647.2,4646.9,0.38719]
[1759759420009,0.22271254,4647.2,4647.1,1.1392]
[1759759420206,0.22271254,4647.2,4646.8,4.347]
[1759759420405,0.38718,4647.1,4646.8,4.347]
[1759759420601,0.00271254,4647.2,4647.0,0.4892]
[1759759420809,0.38713,4647.8,4647.3,0.38715]
[1759759421008,0.60709,4648.2,4647.7,4.347]
[1759759421311,0.38712,4647.8,4647.7,3.2078]
[1759759421807,0.00238205,4647.8,4647.7,4.347]
[1759759422508,0.22,4648.2,4647.7,8.2078]
[1759759422705,1.179,4649.6,4647.8,1.3592]
[1759759422904,0.38704,4648.8,4648.7,1.1392]
[1759759423105,0.96741,4649.7,4648.9,1.1392]
[1759759423106,0.38702,4649.0,4648.9,1.1392]
[1759759423503,0.38861768,4649.0,4648.9,1.1392]
[1759759423702,0.38708,4648.3,4648.2,1.6284]
[1759759423903,0.96916768,4649.0,4648.2,1.6284]
[1759759423904,0.38704,4648.8,4648.3,0.38707]
[1759759424110,0.00159768,4649.0,4648.9,1.1392]
[1759759424111,0.38861768,4649.0,4648.9,1.1392]
[1759759424314,0.00159768,4649.0,4648.9,1.1392]
[1759759425311,0.38861768,4649.0,4648.9,1.1392]
[1759759425710,0.38861768,4649.0,4648.9,1.3592]
[1759759425910,0.00159768,4649.0,4648.9,1.3592]
[1759759427007,0.00159768,4649.0,4648.9,1.1392]
[1759759427208,0.38703,4648.9,4648.7,3.2078]
[1759759427510,0.38703,4648.9,4648.8,1.1392]
[1759759428109,0.38703,4648.9,4648.7,3.2078]
[1759759428319,0.38703,4648.9,4648.8,1.3083]
[1759759428505,5.38703,4648.9,4648.7,3.2078]
[1759759428711,0.38708,4648.3,4648.2,3.2078]
[1759759429113,5.38708,4648.3,4648.2,3.2078]
[1759759429303,0.38708,4648.3,4648.2,3.2078]
[1759759429507,0.38708,4648.3,4648.2,4.5161]
[1759759429717,0.38708,4648.3,4648.2,3.2078]
[1759759430018,0.22,4648.8,4648.2,4.5161]